fUST/lending_fUST_20250811
["ID","MTS","AMOUNT","RATE_DAILY","PERIOD"]
[378525461,1754896424670,336.44,0.0003136,30]
[378525462,1754896427256,460.0,0.0003136,30]
[378525463,1754896427712,460.0,0.0003136,30]
[378525464,1754896427757,460.0,0.0003136,30]
[378525465,1754896427943,460.0,0.0003136,30]
[378525466,1754896433352,460.0,0.0003136,30]
[378525467,1754896433737,463.06,0.0003136,30]
[378525468,1754896434110,460.0,0.0003136,30]
[378525469,1754896434355,460.0,0.0003136,30]
[378525470,1754896435030,460.0,0.0003136,30]
[378525471,1754896435624,460.0,0.0003136,30]
[378525472,1754896442400,460.0,0.0003136,30]
[378525473,1754896442653,460.0,0.0003136,30]
[378525474,1754896449804,460.0,0.0003136,30]
[378525475,1754896450052,460.0,0.0003136,30]
[378525476,1754896453685,1548.91863729,0.00019901,2]
[378525477,1754896453718,3539.39136271,0.00019901,2]
[378525478,1754896460209,460.0,0.0003136,30]
[378525479,1754896460449,460.0,0.0003136,30]
[378525480,1754896462787,460.0,0.00031318,30]
[378525481,1754896463026,460.0,0.00031318,30]
[378525482,1754896463282,401.32490209,0.00031318,30]
[378525483,1754896466660,460.0,0.00031318,30]
[378525484,1754896466918,568.88,0.00031318,30]
[378525486,1754896480599,460.0,0.00031318,30]
[378525487,1754896480764,460.0,0.00031318,30]
[378525488,1754896481024,460.0,0.00031318,30]
[378525489,1754896481281,460.0,0.00031318,30]
[378525490,1754896481484,460.0,0.00031318,30]
[378525491,1754896481570,460.0,0.00031318,30]
[378525492,1754896481856,460.0,0.00031318,30]
[378525493,1754896482079,238.14,0.00031318,30]
[378525494,1754896482136,460.0,0.00031318,30]
[378525495,1754896482396,243.26,0.00031318,30]
[378525496,1754896483905,460.0,0.00031318,30]
[378525497,1754896484507,460.0,0.00031318,30]
[378525498,1754896484777,460.0,0.00031318,30]
[378525499,1754896485039,375.56,0.00031318,30]
[378525500,1754896492407,460.0,0.00031318,30]
[378525501,1754896492637,460.0,0.00031318,30]
[378525502,1754896507753,509.66,0.00031318,30]
[378525503,1754896509430,460.0,0.00031318,30]
[378525504,1754896509550,460.0,0.00031318,30]
[378525505,1754896509804,460.0,0.00031318,30]
[378525506,1754896517619,460.0,0.00031318,30]
[378525507,1754896517882,460.0,0.00031318,30]
[378525508,1754896518797,460.0,0.00031318,30]
[378525509,1754896519034,460.0,0.00031318,30]
[378525510,1754896521955,460.0,0.00031318,30]
[378525511,1754896522208,460.0,0.00031318,30]
[378525512,1754896525541,1542.19735751,0.000199,2]
[378525513,1754896525979,460.0,0.00031318,30]
[378525514,1754896526223,460.0,0.00031318,30]
[378525515,1754896526482,460.0,0.00031318,30]
[378525516,1754896526743,262.22,0.00031318,30]
[378525517,1754896527297,460.0,0.00031318,30]
[378525518,1754896527533,460.0,0.00031318,30]
[378525519,1754896534293,460.0,0.00031318,30]
[378525520,1754896534530,460.0,0.00031318,30]
[378525521,1754896534983,361.28,0.00031318,30]
[378525522,1754896536778,460.0,0.00031318,30]
[378525523,1754896537011,460.0,0.00031318,30]
[378525524,1754896539169,460.0,0.00031318,30]
[378525525,1754896539492,460.0,0.00031318,30]
[378525526,1754896539941,460.0,0.00031318,30]
[378525527,1754896540827,460.0,0.00031318,30]
[378525528,1754896541351,517.06,0.00031318,30]
[378525529,1754896546052,460.0,0.00031318,30]
[378525530,1754896547665,460.0,0.00031318,30]
[378525531,1754896547991,460.0,0.00031318,30]
[378525532,1754896553064,460.0,0.00031318,30]
[378525533,1754896553345,460.0,0.00031318,30]
[378525534,1754896553766,460.0,0.00031318,30]
[378525535,1754896554027,303.59,0.00031318,30]
[378525536,1754896561919,460.0,0.00031318,30]
[378525537,1754896562167,460.0,0.00031318,30]
[378525538,1754896562314,300.56236241,0.00031318,30]
[378525539,1754896564537,460.0,0.00031318,30]
[378525540,1754896564788,556.95,0.00031318,30]
[378525541,1754896566377,460.0,0.00031318,30]
[378525542,1754896566881,460.0,0.00031318,30]
[378525543,1754896572190,474.49104705,0.00031318,30]
[378525544,1754896580087,501.0,0.00030136,120]
[378525545,1754896584406,460.0,0.00031318,30]
[378525546,1754896584661,460.0,0.00031318,30]
[378525547,1754896598245,460.0,0.00031318,30]
[378525548,1754896598493,460.0,0.00031318,30]
[378525549,1754896603378,460.0,0.00031318,30]
[378525550,1754896603628,537.18,0.00031318,30]
[378525551,1754896609414,460.0,0.00031318,30]
[378525552,1754896609687,460.0,0.00031318,30]
[378525553,1754896611116,460.0,0.00031318,30]
[378525554,1754896611371,167.89603516,0.00031318,30]
[378525555,1754896611532,460.0,0.00031318,30]
[378525556,1754896611785,460.0,0.00031318,30]
[378525557,1754896613557,460.0,0.00031318,30]
[378525558,1754896613629,460.0,0.00031318,30]
[378525559,1754896613876,460.0,0.00031318,30]
[378525560,1754896614527,460.0,0.00031318,30]
[378525561,1754896618650,30033.4009505,0.00031318,30]
[378525562,1754896628340,460.0,0.00031318,30]
[378525563,1754896628774,468.16,0.00031318,30]
[378525564,1754896630861,460.0,0.00031318,30]
[378525565,1754896635356,460.0,0.00031318,30]
[378525566,1754896635609,460.0,0.00031318,30]
[378525567,1754896636056,460.0,0.00031318,30]
[378525568,1754896636144,460.0,0.00031318,30]
[378525569,1754896639731,460.0,0.00031318,30]
[378525570,1754896639983,460.0,0.00031318,30]
[378525571,1754896642524,460.0,0.00031318,30]
[378525572,1754896642776,460.0,0.00031318,30]
[378525573,1754896656414,345.24307418,0.00031318,30]
[378525574,1754896658188,460.0,0.00031318,30]
[378525575,1754896665170,460.0,0.00031318,30]
[378525576,1754896665428,460.0,0.00031318,30]
[378525577,1754896666001,460.0,0.00031318,30]
[378525578,1754896666238,270.55235885,0.00031318,30]
[378525579,1754896666302,460.0,0.00031318,30]
[378525580,1754896666537,460.0,0.00031318,30]
[378525581,1754896666959,460.0,0.00031318,30]
[378525582,1754896667038,460.0,0.00031318,30]
[378525583,1754896667361,460.0,0.00031318,30]
[378525584,1754896667757,460.0,0.00031318,30]
[378525585,1754896668011,460.0,0.00031318,30]
[378525586,1754896668158,460.0,0.00031318,30]
[378525587,1754896668209,393.58,0.00031318,30]
[378525588,1754896670940,460.0,0.00031318,30]
[378525589,1754896671021,460.0,0.00031318,30]
[378525590,1754896671212,460.0,0.00031318,30]
[378525591,1754896672052,460.0,0.00031318,30]
[378525592,1754896672868,460.0,0.00031318,30]
[378525593,1754896673375,460.0,0.00031318,30]
[378525594,1754896673826,460.0,0.00031318,30]
[378525595,1754896674380,460.0,0.00031318,30]
[378525596,1754896674809,460.0,0.00031318,30]
[378525597,1754896675331,460.0,0.00031318,30]
[378525598,1754896676084,460.0,0.00031318,30]
[378525599,1754896676538,460.0,0.00031318,30]
[378525600,1754896677637,460.0,0.00031318,30]
[378525601,1754896677885,460.0,0.00031318,30]
[378525602,1754896678029,460.0,0.00031318,30]
[378525603,1754896678264,460.0,0.00031318,30]
[378525604,1754896679380,460.0,0.00031318,30]
[378525605,1754896679862,513.44,0.00031318,30]
[378525606,1754896681299,460.0,0.00031318,30]
[378525607,1754896681571,460.0,0.00031318,30]
[378525608,1754896687019,460.0,0.00031318,30]
[378525609,1754896687732,460.0,0.00031318,30]
[378525610,1754896687824,460.0,0.00031318,30]
[378525611,1754896689338,460.0,0.00031318,30]
[378525612,1754896690419,460.0,0.00031318,30]
[378525613,1754896690774,460.0,0.00031318,30]
[378525614,1754896697095,460.0,0.00031318,30]
[378525615,1754896697543,460.0,0.00031318,30]
[378525616,1754896697708,460.0,0.00031318,30]
[378525617,1754896697927,460.0,0.00031318,30]
[378525618,1754896698922,460.0,0.00031318,30]
[378525619,1754896699348,492.66,0.00031318,30]
[378525620,1754896704312,460.0,0.00031318,30]
[378525621,1754896704561,460.0,0.00031318,30]
[378525622,1754896705753,460.0,0.00031318,30]
[378525623,1754896706391,460.0,0.00031318,30]
[378525624,1754896706994,460.0,0.00031318,30]
[378525625,1754896707310,460.0,0.00031318,30]
[378525626,1754896707357,460.0,0.00031318,30]
[378525627,1754896707594,461.1,0.00031318,30]
[378525628,1754896709653,460.0,0.00031318,30]
[378525629,1754896709728,460.0,0.00031318,30]
[378525630,1754896709923,460.0,0.00031318,30]
[378525631,1754896710287,460.0,0.00031318,30]
[378525632,1754896714983,460.0,0.00031318,30]
[378525633,1754896715220,460.0,0.00031318,30]
[378525634,1754896718148,460.0,0.00031318,30]
[378525635,1754896718382,460.0,0.00031318,30]
[378525636,1754896719199,704.49560696,0.000199,2]
[378525637,1754896725794,460.0,0.00031318,30]
[378525638,1754896726032,460.0,0.00031318,30]
[378525639,1754896733510,460.0,0.00031318,30]
[378525640,1754896734569,460.0,0.00031318,30]
[378525641,1754896736258,460.0,0.00031318,30]
[378525642,1754896738745,460.0,0.00031318,30]
[378525643,1754896739149,460.0,0.00031318,30]
[378525644,1754896743382,460.0,0.00031318,30]
[378525645,1754896743620,460.0,0.00031318,30]
[378525646,1754896746959,460.0,0.00031318,30]
[378525647,1754896747076,460.0,0.00031318,30]
[378525648,1754896748981,460.0,0.00031318,30]
[378525649,1754896749355,460.0,0.00031318,30]
[378525650,1754896749619,460.0,0.00031318,30]
[378525651,1754896749687,460.0,0.00031318,30]
[378525652,1754896752636,460.0,0.00031318,30]
[378525653,1754896752948,460.0,0.00031318,30]
[378525654,1754896755961,460.0,0.00031318,30]
[378525655,1754896756202,460.0,0.00031318,30]
[378525656,1754896756811,402.64,0.00031318,30]
[378525657,1754896766643,460.0,0.0003133,30]
[378525658,1754896767105,460.0,0.0003133,30]
[378525659,1754896767613,272.88,0.0003133,30]
[378525660,1754896769742,460.0,0.0003133,30]
[378525661,1754896770013,460.0,0.0003133,30]
[378525662,1754896772044,562.54058068,0.0003133,30]
[378525663,1754896772706,460.0,0.0003133,30]
[378525664,1754896773431,460.0,0.0003133,30]
[378525665,1754896774997,460.0,0.0003133,30]
[378525666,1754896775152,460.0,0.0003133,30]
[378525667,1754896776040,460.0,0.0003133,30]
[378525668,1754896776293,460.0,0.0003133,30]
[378525669,1754896776464,460.0,0.0003133,30]
[378525670,1754896776710,460.0,0.0003133,30]
[378525671,1754896778181,460.0,0.0003133,30]
[378525672,1754896778533,460.0,0.0003133,30]
[378525673,1754896778584,460.0,0.0003133,30]
[378525674,1754896778635,460.0,0.0003133,30]
[378525675,1754896778799,304.4943401,0.0003133,30]
[378525676,1754896778850,460.0,0.0003133,30]
[378525677,1754896779233,320.46591772,0.0003133,30]
[378525678,1754896780877,460.0,0.0003133,30]
[378525679,1754896780944,460.0,0.0003133,30]
[378525680,1754896792061,460.0,0.0003133,30]
[378525681,1754896793182,460.0,0.0003133,30]
[378525682,1754896793603,460.0,0.0003133,30]
[378525683,1754896795804,460.0,0.0003133,30]
[378525684,1754896796058,460.0,0.0003133,30]
[378525685,1754896820784,460.0,0.0003133,30]
[378525686,1754896821029,460.0,0.0003133,30]
[378525687,1754896829886,460.0,0.0003133,30]
[378525688,1754896830131,460.0,0.0003133,30]
[378525689,1754896833272,460.0,0.0003133,30]
[378525690,1754896834240,460.0,0.0003133,30]
[378525691,1754896835003,197.62386666,0.0003133,30]
[378525692,1754896840861,460.0,0.0003133,30]
[378525693,1754896841108,460.0,0.0003133,30]
[378525694,1754896861037,460.0,0.0003133,30]
[378525695,1754896861284,460.0,0.0003133,30]
[378525696,1754896870251,460.0,0.0003133,30]
[378525697,1754896870512,460.0,0.0003133,30]
[378525698,1754896872352,460.0,0.0003133,30]
[378525699,1754896884970,460.0,0.0003133,30]
[378525700,1754896890822,460.0,0.0003133,30]
[378525701,1754896891069,460.0,0.0003133,30]
[378525702,1754896894356,460.0,0.0003133,30]
[378525703,1754896894596,460.0,0.0003133,30]
[378525704,1754896919394,460.0,0.0003133,30]
[378525705,1754896921104,460.0,0.0003133,30]
[378525706,1754896927137,680.4964673,0.000199,2]
[378525707,1754896935714,164.178869,0.00013699,2]
[378525709,1754896944378,490.17582449,0.0003133,30]
[378525710,1754896947527,460.0,0.0003133,30]
[378525711,1754896947788,460.0,0.0003133,30]
[378525712,1754896948034,326.14,0.0003133,30]
[378525713,1754896962414,460.0,0.0003133,30]
[378525714,1754896962652,460.0,0.0003133,30]
[378525715,1754896964994,460.0,0.0003133,30]
[378525716,1754896965239,186.84160051,0.0003133,30]
[378525717,1754896988021,460.0,0.0003133,30]
[378525718,1754896988096,460.0,0.0003133,30]
[378525719,1754896988590,495.04,0.0003133,30]
[378525720,1754896988853,460.0,0.0003133,30]
[378525721,1754896991848,370.01728332,0.0003133,30]
[378525722,1754896996437,89800.0,0.0003133,120]
[378525723,1754897045351,460.0,0.0003133,30]
[378525724,1754897045603,460.0,0.0003133,30]
[378525725,1754897079702,460.0,0.0003133,30]
[378525726,1754897079936,460.0,0.0003133,30]
[378525727,1754897104526,460.0,0.0003133,30]
[378525728,1754897104786,460.0,0.0003133,30]
[378525729,1754897113335,460.0,0.0003133,30]
[378525730,1754897113600,460.0,0.0003133,30]
[378525731,1754897121737,460.0,0.0003133,30]
[378525732,1754897122013,460.0,0.0003133,30]
[378525733,1754897139033,652.91541837,0.000199,2]
[378525738,1754897176631,596.47513349,0.0003133,30]
[378525739,1754897193944,250.0,0.00029,120]
[378525740,1754897195581,6209.29785731,0.0003133,30]
[378525741,1754897197738,460.0,0.0003133,30]
[378525743,1754897215699,312.25460774,0.00029,120]
[378525746,1754897220178,460.0,0.0003133,30]
[378525747,1754897220537,540.00000003,0.0003133,30]
[378525748,1754897221215,460.0,0.0003133,30]
[378525749,1754897229445,250.0,0.00029,120]
[378525750,1754897243424,460.0,0.0003133,30]
[378525751,1754897320054,906.282228,0.0003133,120]
[378525752,1754897324021,136372.0262997,0.0002489,30]
[378525753,1754897324879,11036.78211719,0.00017,2]
[378525766,1754897355087,617.00651487,0.000199,2]
[378525774,1754897425700,460.0,0.0003133,30]
[378525833,1754897434413,460.0,0.0003133,30]
[378525834,1754897436223,-5000.0,0.00020104,2]
[378525836,1754897436233,-486.1951001,0.00020307,2]
[378525838,1754897436243,-199.0,0.00020575,3]
[378525839,1754897436252,-202.53386358,0.00020763,2]
[378525841,1754897436261,-203.11494807,0.00020763,2]
[378525843,1754897436271,-1200.0,0.00020999,2]
[378525845,1754897436282,-681.64353406,0.00021,10]
[378525847,1754897436290,-1077.64062065,0.00021,2]
[378525848,1754897436300,-202.87297087,0.00021,2]
[378525850,1754897436310,-300.0,0.00021267,2]
[378525851,1754897436319,-300.0,0.00021267,2]
[378525853,1754897436329,-281.0,0.00021267,2]
[378525856,1754897436338,-1200.0,0.00021269,2]
[378525857,1754897436347,-373.94749531,0.00021271,2]
[378525858,1754897436356,-500.0,0.00021271,2]
[378525859,1754897436365,-500.0,0.00021271,2]
[378525860,1754897436375,-500.0,0.00021271,2]
[378525862,1754897436384,-309.138273,0.00021271,2]
[378525864,1754897436394,-500.0,0.00021271,2]
[378525866,1754897436404,-500.0,0.00021271,2]
[378525868,1754897436413,-500.0,0.00021271,2]
[378525870,1754897436423,-500.0,0.00021271,2]
[378525872,1754897436433,-500.0,0.00021271,2]
[378525874,1754897436442,-500.0,0.00021271,2]
[378525875,1754897436452,-515.95176535,0.00021271,2]
[378525876,1754897436461,-500.0,0.00021271,2]
[378525878,1754897436470,-500.0,0.00021271,2]
[378525880,1754897436480,-500.0,0.00021271,2]
[378525881,1754897436489,-687.85392285,0.000213,2]
[378525882,1754897436498,-500.0,0.00021329,2]
[378525883,1754897436508,-311.66817828,0.00021329,2]
[378525884,1754897436518,-503.74849276,0.00021329,2]
[378525885,1754897436529,-500.0,0.00021329,2]
[378525886,1754897436538,-500.0,0.00021367,2]
[378525887,1754897436549,-500.0,0.00021367,2]
[378525888,1754897436559,-510.11317643,0.00021367,2]
[378525889,1754897436568,-500.0,0.00021367,2]
[378525890,1754897436577,-563.15294988,0.00021367,2]
[378525891,1754897436588,-500.0,0.00021371,2]
[378525892,1754897436598,-500.0,0.00021375,2]
[378525893,1754897436756,-500.0,0.000214,2]
[378525894,1754897436765,-500.0,0.000214,2]
[378525895,1754897436774,-500.0,0.000214,2]
[378525896,1754897436784,-606.07813515,0.00021429,2]
[378525897,1754897436793,-500.0,0.00021429,2]
[378525898,1754897436803,-500.0,0.00021433,2]
[378525899,1754897436812,-500.0,0.00021433,2]
[378525900,1754897436821,-500.0,0.00021433,2]
[378525901,1754897436831,-160.0,0.0002153,2]
[378525902,1754897436841,-160.0,0.0002153,2]
[378525903,1754897436850,-160.0,0.00021557,2]
[378525905,1754897436859,-417.15472785,0.00021557,2]
[378525906,1754897436869,-12671.21867243,0.00021557,2]
[378525907,1754897436878,-160.0,0.00021557,2]
[378525908,1754897436888,-461.69158338,0.00021557,2]
[378525909,1754897436898,-160.0,0.00021557,2]
[378525910,1754897436907,-215.4905783,0.00021557,2]
[378525911,1754897436917,-216.68257536,0.00021557,2]
[378525912,1754897436926,-231.9940742,0.00021557,2]
[378525913,1754897436940,-527.9539256,0.00021557,2]
[378525914,1754897436949,-843.18994796,0.00021557,2]
[378525915,1754897436958,-160.0,0.00021558,2]
[378525916,1754897436968,-617.00651487,0.00021655,2]
[378525917,1754897436978,-200.0,0.00021693,15]
[378525918,1754897436988,-200.0,0.00021693,15]
[378525919,1754897436998,-200.0,0.00021693,15]
[378525920,1754897437007,-200.0,0.00021693,15]
[378525921,1754897437017,-200.0,0.00021693,15]
[378525922,1754897437026,-10060.55537797,0.0002178,2]
[378525923,1754897437036,-1000.0,0.00021915,2]
[378525924,1754897437047,-162.0,0.00022,2]
[378525925,1754897437062,-162.0,0.00022192,7]
[378525926,1754897437071,-1500.0,0.00022463,2]
[378525927,1754897437080,-687.85392279,0.00022719,2]
[378525928,1754897437089,-1057.55,0.0002298,10]
[378525929,1754897437098,-1651.19,0.0002298,10]
[378525930,1754897437108,-1375.99,0.0002298,10]
[378525931,1754897437117,-606.20606022,0.00022989,2]
[378525932,1754897437126,-1359.85416973,0.00022989,2]
[378525933,1754897437136,-1359.85416973,0.00022989,2]
[378525934,1754897437145,-1359.85416973,0.00022989,2]
[378525935,1754897437155,-1359.85416973,0.00022989,2]
[378525936,1754897437164,-1359.85416973,0.00022989,2]
[378525937,1754897437174,-1359.85416973,0.00022989,2]
[378525938,1754897437184,-1359.85416973,0.00022989,2]
[378525939,1754897437194,-1359.85416973,0.00022989,2]
[378525940,1754897437203,-100000.0,0.0002299,2]
[378525941,1754897437213,-160.0,0.00023,2]
[378525942,1754897437222,-1366.01223507,0.00023,2]
[378525943,1754897437232,-8418.96,0.00023,7]
[378525944,1754897437241,-2000.0,0.00023011,2]
[378525945,1754897437251,-162.0,0.00023014,7]
[378525946,1754897437260,-715.85599217,0.00023101,2]
[378525947,1754897437270,-2107.86342177,0.000234,2]
[378525948,1754897437279,-617.00651487,0.00023409,2]
[378525949,1754897437288,-2151.0,0.00023422,2]
[378525950,1754897437298,-974.136,0.00023422,2]
[378525951,1754897437307,-636.0,0.00023422,2]
[378525952,1754897437316,-408.0,0.00023422,2]
[378525953,1754897437325,-416.844,0.00023422,2]
[378525954,1754897437335,-196.43,0.00023459,3]
[378525955,1754897437345,-589.31,0.00023459,3]
[378525956,1754897437354,-131988.60821337,0.00023469,2]
[378525957,1754897437367,-410.45625808,0.00023469,2]
[378525958,1754897437382,-488.1592,0.00023469,2]
[378525980,1754897438510,-500.0,0.00021271,2]
[378525982,1754897438520,-201.39602192,0.00021271,2]
[378525984,1754897438530,-473.20504275,0.00021271,2]
[378525986,1754897438539,-160.0,0.00021558,2]
[378525988,1754897438549,-4544.35378084,0.00023469,2]
[378526013,1754897438778,-29153.5920395,0.00023469,2]
[378526015,1754897438787,-500.0,0.00023473,2]
[378526017,1754897438797,-500.0,0.00023473,2]
[378526019,1754897438806,-1802.0,0.000235,3]
[378526021,1754897438815,-1000.0,0.000235,2]
[378526023,1754897438825,-66206.06,0.000235,7]
[378526025,1754897438834,-19900.23,0.000235,7]
[378526027,1754897438843,-160.0,0.000235,7]
[378526029,1754897438853,-160.0,0.000235,2]
[378526031,1754897438862,-2500.0,0.00023558,2]
[378526033,1754897438871,-152.592307,0.0002358,15]
[378526035,1754897438881,-2107.86342174,0.00023732,2]
[378526037,1754897438890,-13256.5582915,0.00023749,2]
[378526039,1754897438900,-13256.5582915,0.00023751,2]
[378526041,1754897438909,-200.0,0.00023811,15]
[378526043,1754897438919,-200.0,0.00023811,15]
[378526045,1754897438929,-200.0,0.00023811,15]
[378526047,1754897438944,-200.0,0.00023811,15]
[378526049,1754897438954,-200.0,0.00023811,15]
[378526051,1754897438963,-200.0,0.00023811,15]
[378526053,1754897438973,-200.0,0.00023811,15]
[378526056,1754897438984,-152.592307,0.000239,2]
[378526057,1754897438995,-600.0,0.00023904,2]
[378526059,1754897439004,-152.592307,0.00023939,15]
[378526061,1754897439014,-150.0,0.00023961,2]
[378526063,1754897439024,-152.41906297,0.00023973,2]
[378526065,1754897439033,-500.0,0.00023973,2]
[378526067,1754897439043,-500.0,0.00023973,2]
[378526069,1754897439052,-500.0,0.00023973,2]
[378526071,1754897439062,-500.0,0.00023973,2]
[378526074,1754897439071,-500.0,0.00023973,2]
[378526075,1754897439080,-500.0,0.00023973,2]
[378526078,1754897439090,-500.0,0.00023973,2]
[378526080,1754897439100,-612.83555691,0.00023973,2]
[378526082,1754897439109,-500.0,0.00023973,2]
[378526083,1754897439118,-500.78623683,0.00023973,2]
[378526085,1754897439128,-500.0,0.00023973,2]
[378526087,1754897439137,-500.0,0.00023973,2]
[378526089,1754897439147,-574.589025,0.00023973,2]
[378526092,1754897439156,-420.41389619,0.00023973,2]
[378526094,1754897439165,-500.0,0.00023973,2]
[378526096,1754897439175,-500.0,0.00023973,2]
[378526098,1754897439184,-152.592307,0.0002399,7]
[378526100,1754897439194,-1000.0,0.00024,24]
[378526102,1754897439203,-238.13347385,0.00024,7]
[378526103,1754897439212,-1700.24749484,0.00024,2]
[378526105,1754897439221,-30098.45501799,0.00024,2]
[378526280,1754897443648,-500.0,0.00021271,2]
[378526281,1754897443658,-6185.54494441,0.0002288,2]
[378526282,1754897443670,-339.21892857,0.0002288,2]
[378526283,1754897443682,-397.47712221,0.0002288,2]
[378526284,1754897443702,-1108.77395235,0.0002298,10]
[378526285,1754897443714,-37.88604765,0.0002298,10]
[378526287,1754897443724,-10881.68823765,0.00024,2]
[378526289,1754897443735,-8375.17842237,0.00024,2]
[378526295,1754897447457,-1496.49378607,0.00024,2]
[378526296,1754897447470,-4437.70867788,0.00024,2]
[378526297,1754897447481,-5899.89317042,0.00024,2]
[378526298,1754897447498,-5834.724464,0.00024,2]
[378526299,1754897448203,460.0,0.0003133,30]
[378526303,1754897463953,491.14,0.0003133,30]
[378526308,1754897484386,460.0,0.0003133,30]
[378526309,1754897486545,460.0,0.0003133,30]
[378526310,1754897492903,460.0,0.0003133,30]
[378526311,1754897495203,353.11436221,0.00030076,120]
[378526312,1754897496235,460.0,0.0003133,30]
[378526313,1754897499247,460.0,0.0003133,30]
[378526314,1754897499867,551.53,0.0003133,30]
[378526315,1754897502949,226.36770675,0.0003133,30]
[378526316,1754897502997,232.30327585,0.0003133,30]
[378526317,1754897504488,464.8035524,0.0003133,30]
[378526319,1754897512194,460.0,0.0003133,30]
[378526320,1754897512797,460.0,0.0003133,30]
[378526321,1754897513063,460.0,0.00031337,30]
[378526322,1754897513199,460.0,0.00031337,30]
[378526323,1754897513691,460.0,0.00031337,30]
[378526324,1754897514477,454.48,0.00031337,30]
[378526325,1754897515005,460.0,0.00031337,30]
[378526326,1754897516639,460.0,0.00031337,30]
[378526327,1754897517380,460.0,0.00031337,30]
[378526328,1754897520751,460.0,0.00031337,30]
[378526329,1754897520869,460.0,0.00031337,30]
[378526330,1754897521116,460.0,0.00031337,30]
[378526331,1754897524341,607.13664712,0.00031337,30]
[378526332,1754897532249,637.09106797,0.000199,2]
[378526333,1754897532396,460.0,0.00031337,30]
[378526334,1754897532695,460.0,0.00031337,30]
[378526335,1754897533294,460.0,0.00031337,30]
[378526336,1754897533542,460.0,0.00031337,30]
[378526337,1754897533800,460.0,0.00031337,30]
[378526338,1754897534103,460.0,0.00031337,30]
[378526339,1754897534423,460.0,0.00031337,30]
[378526340,1754897534665,182.28,0.00031337,30]
[378526341,1754897535226,460.0,0.00031337,30]
[378526342,1754897535469,460.0,0.00031337,30]
[378526343,1754897535738,460.0,0.00031337,30]
[378526344,1754897539846,176.5571811,0.00030076,120]
[378526345,1754897542787,460.0,0.00031337,30]
[378526346,1754897543046,460.0,0.00031337,30]
[378526347,1754897543312,460.0,0.00031337,30]
[378526348,1754897543550,232.62,0.00031337,30]
[378526349,1754897544170,460.0,0.00031337,30]
[378526350,1754897545209,460.0,0.00031337,30]